Workbook

Sheet RZIS
A3: Nazwa i adres | D3: Adresat
A4: jednostki sprawozdawczej | C4: Rachunek zysków i strat jednostki
A5: Ministerstwo Klimatu i Środowiska, ul. Wawelska 52/54, 00-922 Warszawa | C5: (wariant porównawczy) | D5: Ministerstwo Finansów, Funduszy i Polityki Regionalnej, ul. Świętokrzyska 12, 00-916 Warszawa
A9: ……………….…………………..
A10: Numer identyfikacyjny REGON | C10: 2020-12-31 | D10: …………………………………...…………..
A11: 001064858
D12: Stan na koniec roku poprzedniego | E12: Stan na koniec roku bieżącego
A13: A. Przychody netto z podstawowej działalności operacyjnej | D13: =D14+D15+D16+D17+D18+D19 -> 5652696544 | E13: =E14+E15+E16+E17+E18+E19 -> 1.268100511e+10
A14: I. Przychody netto ze sprzedaży produktów | D14: 4885766.92 | E14: 2603332.72
A15: II. Zmiana stanu produktów (zwiększenie - wartość dodatnia, zmniejszenie - wartość ujemna) | D15: 71325.71 | E15: 20318663.66
A16: III. Koszt wytworzenia produktów na własne potrzeby jednostki | D16: 0 | E16: 0
A17: IV. Przychody netto ze sprzedaży towarów i materiałów | D17: 0 | E17: 0
A18: V. Dotacje na finansowanie działalności podstawowej | D18: 0 | E18: 0
A19: VI. Przychody z tytułu dochodów budżetowych | D19: 5647739452 | E19: 1.265808312e+10
A20: B. Koszty działalności operacyjnej | D20: =D21+D22+D23+D24+D25+D27+D26+D28+D29+D30 -> 613271160.8 | E20: =E21+E22+E23+E24+E25+E27+E26+E28+E29+E30 -> 673545114.4
A21: I. Amortyzacja | D21: 46040438.65 | E21: 51509874.21
A22: II. Zużycie materiałów i energii | D22: 45258818.25 | E22: 52700669.68
A23: III. Usługi obce | D23: 132087076.8 | E23: 133119445.5
A24: IV. Podatki i opłaty | D24: 69189756.2 | E24: 74268774.09
A25: V. Wynagrodzenia | D25: 253007359.2 | E25: 292200585.5
A26: VI. Ubezpieczenia społeczne i inne świadczenia dla pracowników | D26: 58172718.79 | E26: 66130116.9
A27: VII. Pozostałe koszty rodzajowe | D27: 8294155.85 | E27: 3087321.98
A28: VIII. Wartość sprzedanych towarów i materiałów | D28: 0 | E28: 0
A29: IX. Inne świadczenia finansowane z budżetu | D29: 1220837.11 | E29: 528215.71
A30: X. Pozostałe obciążenia | D30: 0 | E30: 110.75
A31: C. Zysk (strata) z działalności podstawowej (A-B) | D31: =D13-D20 -> 5039425383 | E31: =E13-E20 -> 1.200746e+10
A32: D. Pozostałe przychody operacyjne | D32: =D33+D34+D35 -> 6737407.36 | E32: =E33+E34+E35 -> 9346327.37
A33: I. Zysk ze zbycia niefinansowych aktywów trwałych | D33: 7975 | E33: 5966
A34: II. Dotacje | D34: 0 | E34: 0
A35: III. Inne przychody operacyjne | D35: 6729432.36 | E35: 9340361.37
A36: E. Pozostałe koszty operacyjne | D36: =D37+D38 -> 39122475.37 | E36: =E37+E38 -> 50563446.79
A37: I. Koszty inwestycji finansowanych ze środków własnych samorządowych zakładów budżetowych i dochodów jednostek budżetowych gromadzonych na wydzielonym rachunku | D37: 226042.9 | E37: 205300.59
A38: II. Pozostałe koszty operacyjne | D38: 38896432.47 | E38: 50358146.2
A39: F. Zysk (strata) z działalnośći operacyjnej (C+D-E) | D39: =D31+D32-D36 -> 5007040315 | E39: =E31+E32-E36 -> 1.196624288e+10
A40: G. Przychody finansowe | D40: =D41+D42+D43 -> 1555057.89 | E40: =E41+E42+E43 -> 6771927.47
A41: I. Dywidendy i udziały w zyskach | D41: 0 | E41: 0
A42: II. Odsetki | D42: 1405209.63 | E42: 6746316.54
A43: III. Inne | D43: 149848.26 | E43: 25610.93
A44: H. Koszty finansowe | D44: =D45+D46 -> 2573640.67 | E44: =E45+E46 -> 7917944.55
A45: I. Odsetki | D45: 2039437.34 | E45: 5030035.07
A46: II. Inne | D46: 534203.33 | E46: 2887909.48
A47: I. Zysk (strata) brutto (F+G-H) | D47: =D39+D40-D44 -> 5006021733 | E47: =E39+E40-E44 -> 1.196509686e+10
A48: J. Podatek dochodowy | D48: 0 | E48: 0
A49: K. Pozostałe obowiązkowe zmniejszenia zysku (zwiększenia straty) | D49: 0 | E49: 0
A50: L. Zysk (strata) netto (I-J-K) | D50: =D47-D48-D49 -> 5006021733 | E50: =E47-E48-E49 -> 1.196509686e+10
A52: Informacje uzupełniajace istotne dla oceny rzetelności i przejrzystości sytuacji finansowej:
A54: Rachunek Zysków i strat został pomniejszony o kwoty wzajemnych rozliczeń dotyczących pozycji:
A55: A.I. Przychody netto ze sprzedaży produktów | E55: 1400
A56: B.III. Usługi obce | E56: 30707.1
A57: D.III. Inne przychody operacyjne | E57: 29307.1

Sheet Headers (hidden)
AA1: 16469
AA2: 161
A3: Nazwa i adres | D3: Adresat | AA3: 93
A4: jednostki sprawozdawczej | C4: Rachunek zysków i strat jednostki | AA4: 2008-01-01
C5: (wariant porównawczy) | AA5: 2008-12-31
AA6: 2008
AA7: R
AA8: PJB
A9: ……………….………………….. | AA9: N
A10: Numer identyfikacyjny REGON | C10: 2018-12-31 | D10: …………………………………...…………..
D12: Stan na koniec roku poprzedniego | E12: Stan na koniec roku bieżącego

Sheet Footers (hidden)
A5: ................................................................. | D5: .................................................................
A6: Rola dla podpisu pierwszego | D6: Rola dla podpisu drugiego
A7: imię i nazwisko | D7: imię i nazwisko
A8: (data i godzina z pola audytowego) | D8: (data i godzina z pola audytowego)

Sheet Printer (hidden)
A3: Nazwa i adres | D3: Adresat
A4: jednostki sprawozdawczej | C4: Rachunek zysków i strat jednostki
C5: (wariant porównawczy)
A9: ……………….…………………..
A10: Numer identyfikacyjny REGON | C10: 2018-12-31 | D10: …………………………………...…………..
D12: Stan na koniec roku poprzedniego | E12: Stan na koniec roku bieżącego
A13: A. Przychody netto z podstawowej działalności operacyjnej | D13: 2693463837 | E13: 5627104599
A14: I. Przychody netto ze sprzedaży produktów | D14: 4298204.83 | E14: 4158161.2
A15: II. Zmiana stanu produktów (zwiększenie - wartość dodatnia, zmniejszenie - wartość ujemna) | D15: -42648.78 | E15: -695157.98
A16: III. Koszt wytworzenia produktów na własne potrzeby jednostki | D16: 0 | E16: 0
A17: IV. Przychody netto ze sprzedaży towarów i materiałów | D17: 0 | E17: 0
A18: V. Dotacje na finansowanie działalności podstawowej | D18: 0 | E18: 0
A19: VI. Przychody z tytułu dochodów budżetowych | D19: 2689208281 | E19: 5623641596
A20: B. Koszty działalności operacyjnej | D20: 429177677 | E20: 391736279.2
A21: I. Amortyzacja | D21: 9956288.13 | E21: 10403890.61
A22: II. Zużycie materiałów i energii | D22: 17603509.33 | E22: 19882890.48
A23: III. Usługi obce | D23: 91599673 | E23: 104962442
A24: IV. Podatki i opłaty | D24: 95167689.25 | E24: 37800467.93
A25: V. Wynagrodzenia | D25: 167386588.2 | E25: 171676883.3
A26: VI. Ubezpieczenia społeczne i inne świadczenia dla pracowników | D26: 38137516.93 | E26: 39074079.1
A27: VII. Pozostałe koszty rodzajowe | D27: 8596511.33 | E27: 7186433.57
A28: VIII. Wartość sprzedanych towarów i materiałów | D28: 0 | E28: 0
A29: IX. Inne świadczenia finansowane z budżetu | D29: 729069.86 | E29: 749192.13
A30: X. Pozostałe obciążenia | D30: 831 | E30: 0
A31: C. Zysk (strata) z działalności podstawowej (A-B) | D31: 2264286160 | E31: 5235368320
A32: D. Pozostałe przychody operacyjne | D32: 3180226.66 | E32: 200922979.7
A33: I. Zysk ze zbycia niefinansowych aktywów trwałych | D33: 18889 | E33: 42753.5
A34: II. Dotacje | D34: 0 | E34: 0
A35: III. Inne przychody operacyjne | D35: 3161337.66 | E35: 200880226.2
A36: E. Pozostałe koszty operacyjne | D36: 98012861.15 | E36: 203909617.1
A37: I. Koszty inwestycji finansowanych ze środków własnych samorządowych zakładów budżetowych i dochodów jednostek budżetowych gromadzonych na wydzielonym rachunku | D37: 31431.76 | E37: 122816.74
A38: II. Pozostałe koszty operacyjne | D38: 97981429.39 | E38: 203786800.4
A39: F. Zysk (strata) z działalnośći operacyjnej (C+D-E) | D39: 2169453525 | E39: 5232381682
A40: G. Przychody finansowe | D40: 2011118.66 | E40: 1374575.45
A41: I. Dywidendy i udziały w zyskach | D41: 0 | E41: 0
A42: II. Odsetki | D42: 1387100.79 | E42: 1369790.01
A43: III. Inne | D43: 624017.87 | E43: 4785.44
A44: H. Koszty finansowe | D44: 22498189.43 | E44: 7854248.39
A45: I. Odsetki | D45: 13041570.49 | E45: 5998983.31
A46: II. Inne | D46: 9456618.94 | E46: 1855265.08
A47: I. Zysk (strata) brutto (F+G-H) | D47: 2148966455 | E47: 5225902009
A48: J. Podatek dochodowy | D48: 0 | E48: 0
A49: K. Pozostałe obowiązkowe zmniejszenia zysku (zwiększenia straty) | D49: 0 | E49: 0
A50: L. Zysk (strata) netto (I-J-K) | D50: 2148966455 | E50: 5225902009
A56: ................................................................. | D56: .................................................................
A57: Rola dla podpisu pierwszego | D57: Rola dla podpisu drugiego
A58: imię i nazwisko | D58: imię i nazwisko
A59: (data i godzina z pola audytowego) | D59: (data i godzina z pola audytowego)

Sheet Aux (hidden)
A1: -1860 | B1: - | C1: 41
A2: RZIS.AGGR
A3: RZIS.AGGR.NEW
A4: BU
A5: 2018
A6: Y01.2018
A7: wer. 1 @ 2019-03-27 11:31:30
A8: 57 | B8: 57
B9: 51
A13: RZIS.POZ | B13: RZIS.POZ.10 | C13: A. Przychody netto z podstawowej działalności operacyjnej
A14: RZIS.POZ | B14: RZIS.POZ.11 | C14: I. Przychody netto ze sprzedaży produktów
A15: RZIS.POZ | B15: RZIS.POZ.12 | C15: II. Zmiana stanu produktów (zwiększenie - wartość dodatnia, zmniejszenie - wartość ujemna)
A16: RZIS.POZ | B16: RZIS.POZ.13 | C16: III. Koszt wytworzenia produktów na własne potrzeby jednostki
A17: RZIS.POZ | B17: RZIS.POZ.14 | C17: IV. Przychody netto ze sprzedaży towarów i materiałów
A18: RZIS.POZ | B18: RZIS.POZ.15 | C18: V. Dotacje na finansowanie działalności podstawowej
A19: RZIS.POZ | B19: RZIS.POZ.16 | C19: VI. Przychody z tytułu dochodów budżetowych
A20: RZIS.POZ | B20: RZIS.POZ.17 | C20: B. Koszty działalności operacyjnej
A21: RZIS.POZ | B21: RZIS.POZ.18 | C21: I. Amortyzacja
A22: RZIS.POZ | B22: RZIS.POZ.19 | C22: II. Zużycie materiałów i energii
A23: RZIS.POZ | B23: RZIS.POZ.20 | C23: III. Usługi obce
A24: RZIS.POZ | B24: RZIS.POZ.21 | C24: IV. Podatki i opłaty
A25: RZIS.POZ | B25: RZIS.POZ.22 | C25: V. Wynagrodzenia
A26: RZIS.POZ | B26: RZIS.POZ.23 | C26: VI. Ubezpieczenia społeczne i inne świadczenia dla pracowników
A27: RZIS.POZ | B27: RZIS.POZ.24 | C27: VII. Pozostałe koszty rodzajowe
A28: RZIS.POZ | B28: RZIS.POZ.25 | C28: VIII. Wartość sprzedanych towarów i materiałów
A29: RZIS.POZ | B29: RZIS.POZ.26 | C29: IX. Inne świadczenia finansowane z budżetu
A30: RZIS.POZ | B30: RZIS.POZ.27 | C30: X. Pozostałe obciążenia
A31: RZIS.POZ | B31: RZIS.POZ.28 | C31: C. Zysk (strata) z działalności podstawowej (A-B)
A32: RZIS.POZ | B32: RZIS.POZ.29 | C32: D. Pozostałe przychody operacyjne
A33: RZIS.POZ | B33: RZIS.POZ.30 | C33: I. Zysk ze zbycia niefinansowych aktywów trwałych
A34: RZIS.POZ | B34: RZIS.POZ.31 | C34: II. Dotacje
A35: RZIS.POZ | B35: RZIS.POZ.32 | C35: III. Inne przychody operacyjne
A36: RZIS.POZ | B36: RZIS.POZ.33 | C36: E. Pozostałe koszty operacyjne
A37: RZIS.POZ | B37: RZIS.POZ.34 | C37: I. Koszty inwestycji finansowanych ze środków własnych samorządowych zakładów budżetowych i dochodów jednostek budżetowych gromadzonych na wydzielonym rachunku
A38: RZIS.POZ | B38: RZIS.POZ.35 | C38: II. Pozostałe koszty operacyjne
A39: RZIS.POZ | B39: RZIS.POZ.36 | C39: F. Zysk (strata) z działalnośći operacyjnej (C+D-E)
A40: RZIS.POZ | B40: RZIS.POZ.37 | C40: G. Przychody finansowe
A41: RZIS.POZ | B41: RZIS.POZ.38 | C41: I. Dywidendy i udziały w zyskach
A42: RZIS.POZ | B42: RZIS.POZ.39 | C42: II. Odsetki
A43: RZIS.POZ | B43: RZIS.POZ.40 | C43: III. Inne
A44: RZIS.POZ | B44: RZIS.POZ.41 | C44: H. Koszty finansowe
A45: RZIS.POZ | B45: RZIS.POZ.42 | C45: I. Odsetki
A46: RZIS.POZ | B46: RZIS.POZ.43 | C46: II. Inne
A47: RZIS.POZ | B47: RZIS.POZ.48 | C47: I. Zysk (strata) brutto (F+G-H)
A48: RZIS.POZ | B48: RZIS.POZ.49 | C48: J. Podatek dochodowy
A49: RZIS.POZ | B49: RZIS.POZ.50 | C49: K. Pozostałe obowiązkowe zmniejszenia zysku (zwiększenia straty)
A50: RZIS.POZ | B50: RZIS.POZ.51 | C50: L. Zysk (strata) netto (I-J-K)
